fUSD/lending_fUSD_20240301
["ID","MTS","AMOUNT","RATE_DAILY","PERIOD"]
[316042970,1709334810874,250.0,0.00020933,2]
[316042971,1709334811864,8996.19183186,0.0002,3]
[316042972,1709334840269,23876.7,0.00020904,2]
[316042973,1709334928937,-162.14711318,0.00021089,2]
[316042974,1709334928962,-163.61,0.0002109,2]
[316042975,1709334928987,-474.88,0.00021096,2]
[316042976,1709334929010,-4018.18288682,0.00021263,2]
[316042977,1709334939816,535.8,0.0002094,2]
[316042978,1709334968544,-800.63711318,0.00021263,2]
[316042979,1709334977993,-150.0,0.00021265,2]
[316042980,1709334991925,-3288.0,0.00021266,2]
[316042981,1709335002474,-1288.0,0.00021266,2]
[316042982,1709335009814,3138.0,0.00021266,2]
[316042983,1709335022460,800.63711318,0.00021053,2]
[316042984,1709335028778,185.42,0.00020928,2]
[316042985,1709335044306,-911.36288682,0.00021053,2]
[316042986,1709335048041,-911.36288682,0.00021053,2]
[316042987,1709335048921,-911.36288682,0.00021053,2]
[316042988,1709335102448,-300.0,0.00021052,2]
[316042989,1709335114443,202.0,0.00020836,2]
[316042990,1709335125164,-25177.27422636,0.00021053,2]
[316042991,1709335148734,157.41,0.00020913,2]
[316042992,1709335197823,1799.9015345,0.0002,2]
[316042993,1709335234718,1064.75,0.00020759,2]
[316042994,1709335244596,191.0,0.00020836,2]
[316042995,1709335271858,250.0,0.00020736,2]
[316042996,1709335284207,164.0,0.00020451,2]
[316042997,1709335300462,476.06,0.00018839,2]
[316042998,1709335407691,250.0,0.00020904,2]
[316042999,1709335410771,8300.0,0.00021,2]
[316043000,1709335491171,571.36,0.00020745,2]
[316043001,1709335592378,160.15027519,0.00020996,2]
[316043002,1709335611060,-160.15027519,0.00021071,2]
[316043003,1709335611081,-163.33354568,0.00021085,2]
[316043004,1709335611102,-5492.2922799,0.00021095,2]
[316043005,1709335611122,-3451.95,0.00021096,2]
[316043006,1709335611144,-300.0,0.00021102,2]
[316043007,1709335611169,-476.06,0.00021103,2]
[316043008,1709335611191,-164.0,0.00021136,2]
[316043009,1709335611213,-160.15027519,0.00021147,2]
[316043010,1709335611238,-160.15027519,0.00021222,2]
[316043011,1709335611270,-157.41,0.00021261,2]
[316043012,1709335611294,-1731.32,0.00021266,2]
[316043013,1709335611320,-158.7,0.00021369,2]
[316043014,1709335611343,-499.99,0.00021369,2]
[316043015,1709335611366,-33307.26,0.00021399,3]
[316043016,1709335611387,-72322.2,0.00021399,3]
[316043017,1709335611407,-2457.55,0.00021399,3]
[316043018,1709335611430,-11607.27,0.00021399,3]
[316043019,1709335611453,-1323.79132047,0.00021483,2]
[316043020,1709335611481,-168.54,0.00021497,2]
[316043021,1709335611504,-1866.71,0.000216,2]
[316043022,1709335611529,-811.31,0.000216,2]
[316043023,1709335611553,-157.41,0.0002161,2]
[316043024,1709335611575,-1216.8357,0.00021617,2]
[316043025,1709335611594,-678.30056711,0.00021699,2]
[316043026,1709335611615,-1854.55,0.000217,2]
[316043027,1709335611636,-202.0,0.00021701,2]
[316043028,1709335611657,-200.0,0.00021741,2]
[316043029,1709335611678,-200.0,0.00021762,2]
[316043030,1709335611698,-200.0,0.00021768,2]
[316043031,1709335611718,-200.0,0.00021782,2]
[316043032,1709335611738,-500.0,0.00021782,2]
[316043033,1709335611759,-200.0,0.00021782,2]
[316043034,1709335611780,-1363.0,0.000218,2]
[316043035,1709335611801,-200.0,0.00021803,2]
[316043036,1709335611822,-14295.541,0.00021816,2]
[316043037,1709335611843,-15580.2113,0.00021817,2]
[316043038,1709335611863,-5000.0,0.00021817,2]
[316043039,1709335611884,-5000.0,0.00021817,2]
[316043040,1709335611905,-917.7460077,0.00021817,2]
[316043041,1709335611927,-164.0,0.00021821,2]
[316043042,1709335612209,-200.0,0.00021823,2]
[316043043,1709335612230,-500.0,0.00021823,2]
[316043044,1709335612252,-990.13,0.00021824,2]
[316043045,1709335612275,-1714.65581493,0.00021827,2]
[316043046,1709335612297,-183.3032471,0.00021828,2]
[316043047,1709335612320,-158.7,0.0002189,2]
[316043048,1709335612341,-4035.86101213,0.00021895,2]
[316043049,1709335612362,-159.99782438,0.00021895,2]
[316043050,1709335612383,-171.72357029,0.00021895,2]
[316043051,1709335612404,-189.86757333,0.00021895,2]
[316043052,1709335612424,-413.25084148,0.00021895,2]
[316043053,1709335612444,-401.21,0.000219,2]
[316043054,1709335612464,-344.82,0.000219,2]
[316043055,1709335612486,-420.83,0.000219,2]
[316043056,1709335612507,-150.0,0.000219,2]
[316043057,1709335612530,-13649.38,0.000219,2]
[316043058,1709335612550,-814.38,0.000219,2]
[316043059,1709335612571,-170.75632412,0.000219,2]
[316043060,1709335612592,-346.25365461,0.000219,5]
[316043061,1709335612613,-439.0692268,0.000219,2]
[316043062,1709335612633,-866.32777932,0.000219,2]
[316043063,1709335612653,-150.55,0.00021907,2]
[316043064,1709335612678,-448.09236638,0.00021915,2]
[316043065,1709335612699,-157.67679959,0.00021915,2]
[316043066,1709335612719,-216.16670673,0.00021915,2]
[316043067,1709335612739,-232.64346033,0.00021915,2]
[316043068,1709335612759,-522.43302845,0.00021915,2]
[316043069,1709335612781,-155.0,0.00021915,2]
[316043070,1709335612800,-786.5096795,0.00021915,2]
[316043071,1709335612820,-1009.34064671,0.00021915,2]
[316043072,1709335612840,-691.59432663,0.00021915,2]
[316043073,1709335612861,-155.0,0.00021915,2]
[316043074,1709335612881,-10106.77355955,0.00021915,2]
[316043075,1709335612902,-2157.55239661,0.00021916,2]
[316043076,1709335612922,-1000.0,0.00021916,2]
[316043077,1709335612942,-500.0,0.00021917,2]
[316043078,1709335612962,-577.37092743,0.00021917,2]
[316043079,1709335612982,-155.03653214,0.00021917,2]
[316043080,1709335613003,-500.0,0.00021917,2]
[316043081,1709335613024,-500.0,0.00021917,2]
[316043082,1709335613044,-500.0,0.00021917,2]
[316043083,1709335613065,-500.0,0.00021917,2]
[316043084,1709335613086,-500.0,0.00021917,2]
[316043085,1709335613107,-500.0,0.00021917,2]
[316043086,1709335613128,-759.25,0.00021917,2]
[316043087,1709335613151,-500.0,0.00021917,2]
[316043088,1709335613174,-513.19,0.00021917,2]
[316043089,1709335613194,-500.0,0.00021917,2]
[316043090,1709335613216,-500.0,0.00021917,2]
[316043091,1709335613237,-500.0,0.00021917,2]
[316043092,1709335613259,-500.0,0.00021917,2]
[316043093,1709335613281,-502.3629929,0.00021917,2]
[316043094,1709335613303,-500.0,0.00021917,2]
[316043095,1709335613324,-500.0,0.00021917,2]
[316043096,1709335613347,-500.0,0.00021917,2]
[316043097,1709335613370,-491.22574094,0.00021917,2]
[316043098,1709335613391,-500.0,0.00021917,2]
[316043099,1709335613412,-500.0,0.00021917,2]
[316043100,1709335613431,-500.0,0.00021917,2]
[316043101,1709335613452,-500.0,0.00021917,2]
[316043102,1709335613473,-500.0,0.00021917,2]
[316043103,1709335613493,-500.0,0.00021917,2]
[316043104,1709335613515,-500.0,0.00021917,2]
[316043105,1709335613536,-500.0,0.00021917,2]
[316043106,1709335613557,-500.0,0.00021917,2]
[316043107,1709335613577,-500.0,0.00021917,2]
[316043108,1709335613598,-500.0,0.00021917,2]
[316043109,1709335613618,-500.0,0.00021917,2]
[316043110,1709335613641,-500.0,0.00021917,2]
[316043111,1709335613662,-500.0,0.00021917,2]
[316043112,1709335613684,-500.0,0.00021917,2]
[316043113,1709335613704,-500.0,0.00021917,2]
[316043114,1709335613724,-457.37307865,0.00021917,2]
[316043115,1709335613746,-500.0,0.00021917,2]
[316043116,1709335613767,-500.0,0.00021917,2]
[316043117,1709335613789,-500.0,0.00021917,2]
[316043118,1709335613810,-319.54900762,0.00021917,2]
[316043119,1709335613831,-500.0,0.00021917,2]
[316043120,1709335613850,-500.0,0.00021917,2]
[316043121,1709335613870,-500.0,0.00021917,2]
[316043122,1709335613890,-500.0,0.00021917,2]
[316043123,1709335613911,-500.0,0.00021917,2]
[316043124,1709335613931,-500.0,0.00021917,2]
[316043125,1709335613951,-500.0,0.00021917,2]
[316043126,1709335613971,-500.0,0.00021917,2]
[316043127,1709335613991,-613.32002275,0.00021917,2]
[316043128,1709335614011,-500.0,0.00021917,2]
[316043129,1709335614033,-513.07760959,0.00021917,2]
[316043130,1709335614054,-500.0,0.00021917,2]
[316043131,1709335614074,-500.0,0.00021917,2]
[316043132,1709335614095,-500.0,0.00021917,2]
[316043133,1709335614116,-500.0,0.00021917,2]
[316043134,1709335614137,-500.0,0.00021917,2]
[316043135,1709335614156,-500.0,0.00021917,2]
[316043136,1709335614179,-500.0,0.00021917,2]
[316043137,1709335614199,-500.0,0.00021917,2]
[316043138,1709335614219,-544.69257107,0.00021917,2]
[316043139,1709335614240,-500.0,0.00021917,2]
[316043140,1709335614262,-500.0,0.00021917,2]
[316043141,1709335614285,-500.0,0.00021917,2]
[316043142,1709335614306,-500.0,0.00021917,2]
[316043143,1709335614327,-500.0,0.00021917,2]
[316043144,1709335614354,-500.0,0.00021917,2]
[316043145,1709335614375,-500.0,0.00021917,2]
[316043146,1709335614397,-500.0,0.00021917,2]
[316043147,1709335614419,-500.0,0.00021917,2]
[316043148,1709335614440,-500.0,0.00021917,2]
[316043149,1709335614462,-500.0,0.00021917,2]
[316043150,1709335614482,-516.42122841,0.00021917,2]
[316043151,1709335614503,-523.27970783,0.00021917,2]
[316043152,1709335614525,-500.0,0.00021917,2]
[316043153,1709335614545,-500.0,0.00021917,2]
[316043154,1709335614567,-639.73231115,0.00021917,2]
[316043155,1709335614587,-500.0,0.00021917,2]
[316043156,1709335614608,-500.0,0.00021917,2]
[316043157,1709335614628,-500.0,0.00021917,2]
[316043158,1709335614648,-500.0,0.00021917,2]
[316043159,1709335614669,-500.0,0.00021917,2]
[316043160,1709335614689,-500.0,0.00021917,2]
[316043161,1709335614710,-500.0,0.00021917,2]
[316043162,1709335614730,-500.0,0.00021917,2]
[316043163,1709335614750,-500.0,0.00021917,2]
[316043164,1709335614769,-510.06529796,0.00021917,2]
[316043165,1709335614797,-500.0,0.00021917,2]
[316043166,1709335614818,-500.0,0.00021917,2]
[316043167,1709335614839,-500.0,0.00021917,2]
[316043168,1709335614859,-500.0,0.00021917,2]
[316043169,1709335614879,-500.0,0.00021917,2]
[316043170,1709335614899,-500.0,0.00021917,2]
[316043171,1709335614919,-500.0,0.00021917,2]
[316043172,1709335614940,-500.0,0.00021917,2]
[316043173,1709335614960,-500.0,0.00021917,2]
[316043174,1709335614981,-500.0,0.00021917,2]
[316043175,1709335615002,-500.0,0.00021917,2]
[316043176,1709335615028,-500.0,0.00021917,2]
[316043177,1709335615049,-500.0,0.00021917,2]
[316043178,1709335615069,-500.0,0.00021917,2]
[316043179,1709335615091,-500.0,0.00021917,2]
[316043180,1709335615112,-500.0,0.00021917,2]
[316043181,1709335615133,-493.54131388,0.00021917,2]
[316043182,1709335615155,-830.0,0.00021917,2]
[316043183,1709335615177,-500.0,0.00021917,2]
[316043184,1709335615198,-500.0,0.00021917,2]
[316043185,1709335615219,-584.90750658,0.00021917,2]
[316043186,1709335615239,-263.41751303,0.00021917,2]
[316043187,1709335615262,-500.0,0.00021917,2]
[316043188,1709335615284,-500.0,0.00021917,2]
[316043189,1709335615305,-500.0,0.00021917,2]
[316043190,1709335615326,-500.0,0.00021917,2]
[316043191,1709335615350,-500.0,0.00021917,2]
[316043192,1709335615371,-500.0,0.00021917,2]
[316043193,1709335615391,-500.0,0.00021917,2]
[316043194,1709335615628,-500.0,0.00021917,2]
[316043195,1709335615649,-2000.0,0.00021917,2]
[316043196,1709335615669,-500.0,0.00021917,2]
[316043197,1709335615689,-500.0,0.00021917,2]
[316043198,1709335615709,-500.0,0.00021917,2]
[316043199,1709335615729,-500.0,0.00021917,2]
[316043200,1709335615750,-200.0,0.00021917,2]
[316043201,1709335615772,-500.0,0.00021917,2]
[316043202,1709335615793,-500.0,0.00021917,2]
[316043203,1709335615814,-224.0365173,0.00021917,2]
[316043204,1709335615834,-500.0,0.00021917,2]
[316043205,1709335615854,-500.0,0.00021917,2]
[316043206,1709335615876,-500.0,0.00021917,2]
[316043207,1709335615897,-500.0,0.00021917,2]
[316043208,1709335615919,-500.0,0.00021917,2]
[316043209,1709335615939,-500.0,0.00021917,2]
[316043210,1709335615960,-500.0,0.00021917,2]
[316043211,1709335615980,-277.71135381,0.00021917,2]
[316043212,1709335616002,-500.0,0.00021917,2]
[316043213,1709335616022,-500.0,0.00021917,2]
[316043214,1709335616043,-594.09,0.00021917,2]
[316043215,1709335616065,-500.0,0.00021917,2]
[316043216,1709335616086,-500.0,0.00021917,2]
[316043217,1709335616108,-500.0,0.00021917,2]
[316043218,1709335616129,-500.0,0.00021917,2]
[316043219,1709335616150,-500.0,0.00021917,2]
[316043220,1709335616172,-500.0,0.00021917,2]
[316043221,1709335616194,-336.15,0.00021917,2]
[316043222,1709335616216,-515.02128904,0.00021917,2]
[316043223,1709335616238,-500.0,0.00021917,2]
[316043224,1709335616261,-500.0,0.00021917,2]
[316043225,1709335616282,-500.0,0.00021917,2]
[316043226,1709335616306,-500.0,0.00021917,2]
[316043227,1709335616327,-500.0,0.00021917,2]
[316043228,1709335616348,-500.0,0.00021917,2]
[316043229,1709335616370,-1101.39,0.00021917,2]
[316043230,1709335616391,-510.70870854,0.00021917,2]
[316043231,1709335616414,-500.0,0.00021917,2]
[316043232,1709335616435,-500.0,0.00021917,2]
[316043233,1709335616457,-500.0,0.00021917,2]
[316043234,1709335616479,-500.0,0.00021917,2]
[316043235,1709335616500,-248.32848773,0.00021917,2]
[316043236,1709335616521,-500.0,0.00021917,2]
[316043237,1709335616541,-399.01801217,0.00021917,2]
[316043238,1709335616561,-500.0,0.00021917,2]
[316043239,1709335616581,-500.0,0.00021917,2]
[316043240,1709335616602,-552.19041034,0.00021917,2]
[316043241,1709335616622,-500.0,0.00021917,2]
[316043242,1709335616643,-500.0,0.00021917,2]
[316043243,1709335616663,-500.0,0.00021917,2]
[316043244,1709335616683,-500.0,0.00021917,2]
[316043245,1709335616703,-500.0,0.00021917,2]
[316043246,1709335616724,-500.0,0.00021917,2]
[316043247,1709335616743,-500.0,0.00021917,2]
[316043248,1709335616763,-1131.01,0.00021917,2]
[316043249,1709335616785,-500.0,0.00021917,2]
[316043250,1709335616806,-500.0,0.00021917,2]
[316043251,1709335616826,-500.0,0.00021917,2]
[316043252,1709335616846,-500.0,0.00021917,2]
[316043253,1709335616866,-500.0,0.00021917,2]
[316043254,1709335616887,-455.60404144,0.00021917,2]
[316043255,1709335616907,-500.0,0.00021917,2]
[316043256,1709335616928,-500.0,0.00021917,2]
[316043257,1709335616948,-500.0,0.00021917,2]
[316043258,1709335616971,-500.0,0.00021917,2]
[316043259,1709335616991,-500.0,0.00021917,2]
[316043260,1709335617011,-246.34798537,0.00021917,2]
[316043261,1709335617035,-500.0,0.00021917,2]
[316043262,1709335617061,-500.0,0.00021917,2]
[316043263,1709335617081,-500.0,0.00021917,2]
[316043264,1709335617101,-522.89273898,0.00021917,2]
[316043265,1709335617121,-500.0,0.00021917,2]
[316043266,1709335617141,-615.49,0.00021917,2]
[316043267,1709335617163,-500.0,0.00021917,2]
[316043268,1709335617184,-622.14315856,0.00021917,2]
[316043269,1709335617206,-500.0,0.00021917,2]
[316043270,1709335617229,-500.0,0.00021917,2]
[316043271,1709335617253,-534.27402794,0.00021917,2]
[316043272,1709335617277,-500.0,0.00021917,2]
[316043273,1709335617298,-500.0,0.00021917,2]
[316043274,1709335617324,-500.0,0.00021917,2]
[316043275,1709335617345,-500.0,0.00021917,2]
[316043276,1709335617366,-544.24512763,0.00021917,2]
[316043277,1709335617387,-500.0,0.00021917,2]
[316043278,1709335617409,-596.38,0.00021917,2]
[316043279,1709335617430,-183.69938677,0.00021917,2]
[316043280,1709335617451,-500.0,0.00021917,2]
[316043281,1709335617472,-500.0,0.00021917,2]
[316043282,1709335617494,-500.0,0.00021917,2]
[316043283,1709335617515,-500.0,0.00021917,2]
[316043284,1709335617537,-500.0,0.00021917,2]
[316043285,1709335617558,-500.0,0.00021917,2]
[316043286,1709335617579,-500.0,0.00021917,2]
[316043287,1709335617601,-500.0,0.00021917,2]
[316043288,1709335617623,-947.19,0.00021917,2]
[316043289,1709335617644,-500.0,0.00021917,2]
[316043290,1709335617668,-500.0,0.00021917,2]
[316043291,1709335617688,-500.0,0.00021917,2]
[316043292,1709335617713,-500.0,0.00021917,2]
[316043293,1709335617733,-500.0,0.00021917,2]
[316043294,1709335617754,-500.0,0.00021917,2]
[316043295,1709335617775,-249.8593347,0.00021917,2]
[316043296,1709335617796,-500.0,0.00021917,2]
[316043297,1709335617817,-500.0,0.00021917,2]
[316043298,1709335617837,-515.08795085,0.00021917,2]
[316043299,1709335617858,-500.0,0.00021917,2]
[316043300,1709335617879,-500.0,0.00021917,2]
[316043301,1709335617899,-500.0,0.00021917,2]
[316043302,1709335617920,-500.0,0.00021917,2]
[316043303,1709335617940,-500.0,0.00021917,2]
[316043304,1709335617960,-1098.59,0.00021917,2]
[316043305,1709335617981,-500.0,0.00021917,2]
[316043306,1709335618001,-500.0,0.00021917,2]
[316043307,1709335618021,-469.68380171,0.00021917,2]
[316043308,1709335618042,-500.0,0.00021917,2]
[316043309,1709335618062,-500.0,0.00021917,2]
[316043310,1709335618083,-1938.89,0.00021917,2]
[316043311,1709335618107,-500.0,0.00021917,2]
[316043312,1709335618128,-500.0,0.00021917,2]
[316043313,1709335618156,-500.0,0.00021917,2]
[316043314,1709335618179,-500.0,0.00021917,2]
[316043315,1709335618201,-500.0,0.00021917,2]
[316043316,1709335618222,-500.0,0.00021917,2]
[316043317,1709335618243,-500.0,0.00021917,2]
[316043318,1709335618266,-500.0,0.00021917,2]
[316043319,1709335618288,-500.0,0.00021917,2]
[316043320,1709335618310,-500.0,0.00021917,2]
[316043321,1709335618332,-500.0,0.00021917,2]
[316043322,1709335618354,-500.0,0.00021917,2]
[316043323,1709335618379,-500.83051693,0.00021917,2]
[316043324,1709335618401,-500.0,0.00021917,2]
[316043325,1709335618423,-500.0,0.00021917,2]
[316043326,1709335618445,-500.0,0.00021917,2]
[316043327,1709335618467,-500.0,0.00021917,2]
[316043328,1709335618489,-500.0,0.00021917,2]
[316043329,1709335618510,-500.0,0.00021917,2]
[316043330,1709335618534,-500.0,0.00021917,2]
[316043331,1709335618556,-500.0,0.00021917,2]
[316043332,1709335618578,-500.0,0.00021917,2]
[316043333,1709335618600,-1049.56,0.00021917,2]
[316043334,1709335618622,-500.0,0.00021917,2]
[316043335,1709335618643,-500.0,0.00021917,2]
[316043336,1709335618669,-848.52,0.00021917,2]
[316043337,1709335618691,-500.0,0.00021917,2]
[316043338,1709335618712,-500.0,0.00021917,2]
[316043339,1709335618733,-500.0,0.00021917,2]
[316043340,1709335618755,-500.0,0.00021917,2]
[316043341,1709335618781,-500.0,0.00021917,2]
[316043342,1709335618801,-500.0,0.00021917,2]
[316043343,1709335618822,-500.0,0.00021917,2]
[316043344,1709335618844,-500.0,0.00021917,2]
[316043345,1709335618876,-500.0,0.00021917,2]
[316043346,1709335618918,-500.0,0.00021917,2]
[316043347,1709335619217,-500.0,0.00021917,2]
[316043348,1709335619242,-500.0,0.00021917,2]
[316043349,1709335619265,-500.0,0.00021917,2]
[316043350,1709335619286,-500.0,0.00021917,2]
[316043351,1709335619307,-500.0,0.00021917,2]
[316043352,1709335619327,-500.0,0.00021917,2]
[316043353,1709335619348,-500.0,0.00021917,2]
[316043354,1709335619368,-500.0,0.00021917,2]
[316043355,1709335619389,-500.0,0.00021917,2]
[316043356,1709335619410,-500.0,0.00021917,2]
[316043357,1709335619431,-500.0,0.00021917,2]
[316043358,1709335619451,-500.0,0.00021917,2]
[316043359,1709335619472,-772.3,0.00021917,2]
[316043360,1709335619493,-500.0,0.00021917,2]
[316043361,1709335619514,-500.0,0.00021917,2]
[316043362,1709335619537,-500.0,0.00021917,2]
[316043363,1709335619559,-500.0,0.00021917,2]
[316043364,1709335619580,-499.93359249,0.00021917,2]
[316043365,1709335619600,-500.0,0.00021917,2]
[316043366,1709335619620,-647.79646989,0.00021917,2]
[316043367,1709335619643,-500.0,0.00021917,2]
[316043368,1709335619664,-500.0,0.00021917,2]
[316043369,1709335619685,-500.0,0.00021917,2]
[316043370,1709335619705,-500.0,0.00021917,2]
[316043371,1709335619726,-500.0,0.00021917,2]
[316043372,1709335619747,-500.0,0.00021917,2]
[316043373,1709335619767,-500.0,0.00021917,2]
[316043374,1709335619788,-500.0,0.00021917,2]
[316043375,1709335619808,-615.69,0.00021917,2]
[316043376,1709335619828,-525.72,0.00021917,2]
[316043377,1709335619849,-500.0,0.00021917,2]
[316043378,1709335619870,-500.0,0.00021917,2]
[316043379,1709335619891,-500.0,0.00021917,2]
[316043380,1709335619912,-500.0,0.00021917,2]
[316043381,1709335619934,-500.0,0.00021917,2]
[316043382,1709335619957,-500.0,0.00021917,2]
[316043383,1709335619979,-542.86469793,0.00021917,2]
[316043384,1709335620000,-500.0,0.00021917,2]
[316043385,1709335620032,-500.0,0.00021917,2]
[316043386,1709335620058,-500.0,0.00021917,2]
[316043387,1709335620082,-500.0,0.00021917,2]
[316043388,1709335620103,-585.98452282,0.00021917,2]
[316043389,1709335620125,-500.0,0.00021917,2]
[316043390,1709335620147,-150.58031776,0.00021917,2]
[316043391,1709335620172,-778.46,0.00021917,2]
[316043392,1709335620193,-500.0,0.00021917,2]
[316043393,1709335620217,-500.0,0.00021917,2]
[316043394,1709335620240,-500.0,0.00021917,2]
[316043395,1709335620271,-500.87629936,0.00021917,2]
[316043396,1709335620296,-500.0,0.00021917,2]
[316043397,1709335620319,-500.0,0.00021917,2]
[316043398,1709335620345,-500.0,0.00021917,2]
[316043399,1709335620368,-500.0,0.00021917,2]
[316043400,1709335620389,-500.0,0.00021917,2]
[316043401,1709335620411,-500.0,0.00021917,2]
[316043402,1709335620433,-756.4,0.00021917,2]
[316043403,1709335620456,-551.67485571,0.00021917,2]
[316043404,1709335620478,-529.04,0.00021917,2]
[316043405,1709335620502,-500.0,0.00021917,2]
[316043406,1709335620524,-500.0,0.00021917,2]
[316043407,1709335620548,-500.0,0.00021917,2]
[316043408,1709335620569,-500.0,0.00021917,2]
[316043409,1709335620591,-500.0,0.00021917,2]
[316043410,1709335620612,-611.29,0.00021917,2]
[316043411,1709335620635,-500.0,0.00021917,2]
[316043412,1709335620658,-588.89,0.00021917,2]
[316043413,1709335620683,-500.0,0.00021917,2]
[316043414,1709335620705,-500.0,0.00021917,2]
[316043415,1709335620727,-500.0,0.00021917,2]
[316043416,1709335620748,-500.0,0.00021917,2]
[316043417,1709335620771,-500.0,0.00021917,2]
[316043418,1709335620793,-276.54109171,0.00021917,2]
[316043419,1709335620813,-634.27,0.00021917,2]
[316043420,1709335620839,-500.0,0.00021917,2]
[316043421,1709335620862,-1105.87,0.00021917,2]
[316043422,1709335620885,-500.0,0.00021917,2]
[316043423,1709335620908,-500.0,0.00021917,2]
[316043424,1709335620944,-500.0,0.00021917,2]
[316043425,1709335620969,-500.0,0.00021917,2]
[316043426,1709335620998,-585.34,0.00021917,2]
[316043427,1709335621026,-500.0,0.00021917,2]
[316043428,1709335621054,-500.0,0.00021917,2]
[316043429,1709335621078,-500.0,0.00021917,2]
[316043430,1709335621101,-541.99,0.00021917,2]
[316043431,1709335621124,-514.42099002,0.00021917,2]
[316043432,1709335621147,-500.0,0.00021917,2]
[316043433,1709335621172,-500.0,0.00021917,2]
[316043434,1709335621194,-500.0,0.00021917,2]
[316043435,1709335621218,-302.20794285,0.00021917,2]
[316043436,1709335621239,-500.0,0.00021917,2]
[316043437,1709335621260,-500.0,0.00021917,2]
[316043438,1709335621285,-500.0,0.00021917,2]
[316043439,1709335621306,-500.0,0.00021917,2]
[316043440,1709335621329,-500.0,0.00021917,2]
[316043441,1709335621350,-500.0,0.00021917,2]
[316043442,1709335621371,-500.0,0.00021917,2]
[316043443,1709335621393,-500.0,0.00021917,2]
[316043444,1709335621414,-500.0,0.00021917,2]
[316043445,1709335621442,-500.0,0.00021917,2]
[316043446,1709335621477,-500.0,0.00021917,2]
[316043447,1709335621501,-500.0,0.00021917,2]
[316043448,1709335621522,-500.0,0.00021917,2]
[316043449,1709335621548,-500.0,0.00021917,2]
[316043450,1709335621569,-500.0,0.00021917,2]
[316043451,1709335621590,-500.0,0.00021917,2]
[316043452,1709335621611,-500.0,0.00021917,2]
[316043453,1709335621632,-500.0,0.00021917,2]
[316043454,1709335621653,-965.01,0.00021917,2]
[316043455,1709335621674,-500.0,0.00021917,2]
[316043456,1709335621694,-1109.36,0.00021917,2]
[316043457,1709335621715,-500.0,0.00021917,2]
[316043458,1709335621736,-500.0,0.00021917,2]
[316043459,1709335621756,-500.0,0.00021917,2]
[316043460,1709335621780,-712.39,0.00021917,2]
[316043461,1709335621801,-500.0,0.00021917,2]
[316043462,1709335621821,-500.0,0.00021917,2]
[316043463,1709335621842,-500.0,0.00021917,2]
[316043464,1709335621864,-500.0,0.00021917,2]
[316043465,1709335621885,-500.0,0.00021917,2]
[316043466,1709335621906,-500.0,0.00021917,2]
[316043467,1709335621928,-500.0,0.00021917,2]
[316043468,1709335621949,-500.0,0.00021917,2]
[316043469,1709335621971,-906.64,0.00021917,2]